bitfinex-derivatives/quotes_BNBF0:USTF0_20250708
["timestamp","ask_amount","ask_price","bid_price","bid_amount"]
[1752002935837,0.26321562,661.66,660.9,2.192]
[1752002935838,1.7000979,661.2,660.9,2.192]
[1752002936333,1.7000979,661.21,660.9,2.192]
[1752002940236,1.01414667,661.48,660.9,2.192]
[1752002940440,1.69951298,661.21,660.9,2.192]
[1752002941241,1.69951298,661.22,660.9,2.192]
[1752002945644,1.69951298,661.14,660.9,2.192]
[1752002946652,1.69951298,661.2,660.9,2.192]
[1752002949547,1.69951298,661.2,660.89,0.26318974]
[1752002949747,1.69951298,661.19,660.89,0.26318974]
[1752002950849,1.69951298,661.17,660.89,0.26318974]
[1752002951143,1.69951298,661.15,660.89,0.26318974]
[1752002952747,1.69951298,661.2,660.89,0.26318974]
[1752002953147,1.69951298,661.2,660.9,1.963]
[1752002954548,1.69951298,661.16,660.9,1.963]
[1752002955556,1.69951298,661.18,660.9,1.963]
[1752002956154,1.69951298,661.17,660.9,1.963]
[1752002957252,1.69951298,661.16,660.9,1.963]
[1752002957451,1.69951298,661.17,660.9,1.963]
[1752002957754,1.69951298,661.16,660.9,1.963]
[1752002958352,1.69951298,661.13,660.9,1.963]
[1752002958953,1.69951298,661.12,660.9,1.963]
[1752002959157,1.69951298,661.13,660.9,1.963]
[1752002961257,1.69951298,661.14,660.9,1.963]
[1752002963658,1.69951298,661.11,660.9,1.963]
[1752002964457,1.69951298,661.12,660.9,1.963]
[1752002965260,1.69951298,661.13,660.9,1.963]
[1752002966356,1.69951298,661.15,660.9,1.963]
[1752002967361,1.69951298,661.08,660.9,1.963]
[1752002968365,1.69951298,661.09,660.9,1.963]
[1752002968660,1.69951298,661.08,660.9,1.963]
[1752002969159,1.69951298,661.09,660.9,1.963]
[1752002970162,1.69951298,661.1,660.9,1.963]
[1752002970365,1.69951298,661.09,660.9,1.963]
[1752002970961,1.69951298,661.1,660.9,1.963]
[1752002971164,1.69951298,661.09,660.9,1.963]
[1752002972165,1.69951298,661.1,660.9,1.963]
[1752002974267,1.69951298,661.11,660.9,1.963]
[1752002974465,1.69951298,661.1,660.9,1.963]
[1752002976263,1.69951298,661.02,660.9,1.963]
[1752002976566,1.69951298,661.01,660.9,1.963]
[1752002977162,1.69951298,660.99,660.9,1.963]
[1752002977964,1.69951298,660.98,660.9,1.963]
[1752002978368,1.69951298,660.99,660.9,1.963]
[1752002979469,1.69951298,660.98,660.9,1.963]
[1752002980670,1.69951298,660.97,660.9,1.963]
[1752002982069,0.26320865,661.48,660.9,1.963]
[1752002982070,1.69951298,660.98,660.9,1.963]
[1752002982471,1.69951298,660.97,660.9,1.963]
[1752002984971,1.69951298,660.95,660.9,1.963]
[1752002986177,1.69951298,660.97,660.9,1.963]
[1752002990276,1.69951298,660.98,660.9,1.963]
[1752002991278,1.69951298,660.99,660.9,1.963]
[1752002991977,1.69951298,660.98,660.9,1.963]
[1752002996077,1.69951298,660.97,660.9,1.963]
[1752002999085,1.69951298,660.96,660.9,1.963]
[1752003000186,1.69951298,660.95,660.9,1.963]
[1752003003185,1.69951298,660.95,660.68,0.2632415]
[1752003004285,1.69951298,660.94,660.68,0.2632415]
[1752003006787,1.69951298,660.94,660.69,1.946]
[1752003008287,1.69951298,660.93,660.69,1.946]
[1752003011186,1.69951298,660.92,660.69,1.946]
[1752003013389,1.69951298,660.91,660.69,1.946]
[1752003013889,1.69951298,660.92,660.69,1.946]
[1752003014486,1.69951298,660.95,660.69,1.946]
[1752003014690,1.69951298,660.99,660.69,1.946]
[1752003016289,1.69951298,660.98,660.69,1.946]
[1752003017091,1.69951298,660.99,660.69,1.946]
[1752003018292,1.69951298,660.98,660.69,1.946]
[1752003020291,1.69951298,660.97,660.69,1.946]
[1752003022191,1.69951298,660.96,660.69,1.946]
[1752003023695,1.69951298,660.95,660.69,1.946]
[1752003024394,1.69951298,660.93,660.69,1.946]
[1752003025294,1.69951298,660.92,660.69,1.946]
[1752003025796,1.69951298,660.9,660.69,1.946]
[1752003026492,1.69951298,660.91,660.69,1.946]
[1752003027097,1.69951298,660.9,660.69,1.946]
[1752003027997,1.69951298,660.89,660.69,1.946]
[1752003030800,1.69951298,660.91,660.69,1.946]
[1752003040701,1.69951298,660.9,660.69,1.946]
[1752003042806,1.69951298,660.9,660.68,0.2632415]
[1752003043008,1.69951298,660.89,660.68,0.2632415]
[1752003043208,1.69951298,660.9,660.68,0.2632415]
[1752003043409,1.69951298,660.89,660.68,0.2632415]
[1752003065335,1.69951298,660.88,660.68,0.2632415]
[1752003066035,1.69951298,660.89,660.68,0.2632415]
[1752003068436,1.69951298,660.9,660.68,0.2632415]
[1752003070433,1.69951298,660.89,660.68,0.2632415]
[1752003074336,1.69951298,660.88,660.68,0.2632415]
[1752003074540,1.69951298,660.9,660.68,0.2632415]
[1752003078139,1.69951298,660.89,660.68,0.2632415]
[1752003079744,1.69951298,660.91,660.68,0.2632415]
[1752003080949,1.69951298,660.9,660.68,0.2632415]
[1752003084341,1.69951298,660.89,660.68,0.2632415]
[1752003089551,0.26320865,661.48,660.68,0.2632415]
[1752003089552,1.69951298,660.86,660.68,0.2632415]
[1752003091054,1.69951298,660.87,660.68,0.2632415]
[1752003091756,1.69951298,660.89,660.68,0.2632415]
[1752003099365,1.69951298,660.88,660.68,0.2632415]
[1752003101669,1.69951298,660.86,660.68,0.2632415]
[1752003102070,1.69951298,660.87,660.68,0.2632415]
[1752003104075,1.69951298,660.88,660.68,0.2632415]
[1752003106480,1.69951298,660.89,660.68,0.2632415]
[1752003107976,1.69951298,660.88,660.68,0.2632415]
[1752003110182,1.69951298,660.88,660.58,2.23]
[1752003110676,1.69951298,660.88,660.61,0.26331221]
[1752003111280,1.69951298,660.89,660.61,0.26331221]
[1752003113079,1.69951298,660.88,660.58,2.23]
[1752003113480,1.69951298,660.87,660.58,2.23]
[1752003114079,1.69951298,660.81,660.58,2.23]
[1752003115383,1.69951298,660.82,660.58,2.23]
[1752003115589,1.69951298,660.8,660.58,2.23]
[1752003116379,1.69951298,660.81,660.58,2.23]
[1752003117286,1.69951298,660.78,660.58,2.23]
[1752003118386,1.69951298,660.79,660.58,2.23]
[1752003119086,1.69951298,660.76,660.58,2.23]
[1752003119486,1.69951298,660.77,660.58,2.23]
[1752003120289,3.39265445,661.05,660.58,2.23]
[1752003120290,1.69951298,660.76,660.58,2.23]
[1752003120789,1.69951298,660.76,660.52,0.26332915]
[1752003121189,1.69951298,660.77,660.52,0.26332915]
[1752003123191,1.69951298,660.78,660.52,0.26332915]
[1752003124092,1.69951298,660.78,660.53,2.214]
[1752003125092,1.69951298,660.79,660.53,2.214]
[1752003125394,1.69951298,660.77,660.53,2.214]
[1752003125993,1.69951298,660.78,660.53,2.214]
[1752003126993,1.69951298,660.77,660.53,2.214]
[1752003127289,1.69951298,660.78,660.53,2.214]
[1752003127689,1.69951298,660.79,660.53,2.214]
[1752003128190,1.69951298,660.8,660.53,2.214]
[1752003128395,1.69951298,660.79,660.53,2.214]
[1752003128793,1.69951298,660.81,660.53,2.214]
[1752003131896,1.69951298,660.82,660.53,2.214]
[1752003132299,1.69951298,660.83,660.53,2.214]
[1752003132800,1.69951298,660.82,660.53,2.214]
[1752003133497,3.39265445,661.11,660.53,2.214]
[1752003133498,1.69951298,660.79,660.53,2.214]
[1752003134000,1.69951298,660.76,660.53,2.214]
[1752003134199,1.69951298,660.77,660.53,2.214]
[1752003135700,1.69951298,660.76,660.53,2.214]
[1752003135897,1.69951298,660.77,660.53,2.214]
[1752003136097,1.69951298,660.76,660.53,2.214]
[1752003139399,1.69951298,660.77,660.53,2.214]
[1752003142304,1.69951298,660.76,660.53,2.214]
[1752003143305,1.69951298,660.77,660.53,2.214]
[1752003149309,1.69951298,660.76,660.53,2.214]
[1752003150710,1.69951298,660.77,660.53,2.214]
[1752003151309,1.69951298,660.76,660.53,2.214]
[1752003151613,1.69951298,660.77,660.53,2.214]
[1752003151811,2.25697379,660.91,660.53,2.214]
[1752003152012,1.68955045,660.77,660.53,2.214]
[1752003153113,1.68955045,660.76,660.53,2.214]
[1752003159916,1.68955045,660.75,660.53,2.214]
[1752003160716,1.68955045,660.74,660.53,2.214]
[1752003161413,1.68955045,660.73,660.53,2.214]
[1752003163814,1.68955045,660.72,660.53,2.214]
[1752003166421,1.68955045,660.71,660.53,2.214]
[1752003168120,2.25697379,660.81,660.53,2.214]
[1752003168121,1.68955045,660.7,660.53,2.214]
[1752003169325,1.68955045,660.69,660.53,2.214]
[1752003170320,1.68955045,660.68,660.53,2.214]
[1752003171326,1.68955045,660.67,660.53,2.214]
[1752003173430,1.68955045,660.66,660.53,2.214]
[1752003174032,1.68955045,660.67,660.53,2.214]
[1752003176229,1.68955045,660.66,660.53,2.214]
[1752003178533,1.68955045,660.65,660.53,2.214]
[1752003179536,1.68955045,660.69,660.53,2.214]
[1752003180035,1.68955045,660.7,660.53,2.214]
[1752003180936,1.68955045,660.67,660.53,2.214]
[1752003182137,1.68955045,660.67,660.4,0.26336502]
[1752003185838,1.68955045,660.67,660.41,2.518]
[1752003186038,1.68955045,660.65,660.41,2.518]
[1752003186441,1.68955045,660.61,660.41,2.518]
[1752003189839,1.68955045,660.59,660.41,2.518]
[1752003190240,1.68955045,660.58,660.41,2.518]
[1752003190541,0.26336801,661.07,660.41,2.518]
[1752003190542,1.68955045,660.57,660.41,2.518]
[1752003193240,1.68955045,660.59,660.41,2.518]
[1752003194341,1.68955045,660.6,660.41,2.518]
[1752003195944,1.68955045,660.59,660.41,2.518]
[1752003196143,1.68955045,660.6,660.41,2.518]
[1752003196342,1.68955045,660.59,660.41,2.518]
[1752003199044,1.68955045,660.6,660.41,2.518]
[1752003201243,1.68955045,660.61,660.41,2.518]
[1752003202945,1.68955045,660.6,660.41,2.518]
[1752003204147,1.68955045,660.59,660.41,2.518]
[1752003204746,1.68955045,660.56,660.41,2.518]
[1752003205149,1.68955045,660.57,660.41,2.518]
[1752003206750,1.68955045,660.54,660.41,2.518]
[1752003208146,1.68955045,660.55,660.41,2.518]
[1752003208847,1.68955045,660.54,660.41,2.518]
[1752003210250,1.68955045,660.53,660.41,2.518]
[1752003211151,1.68955045,660.54,660.41,2.518]
[1752003212453,1.68955045,660.55,660.41,2.518]
[1752003213349,0.26336801,661.07,660.41,2.518]
[1752003213350,1.68955045,660.53,660.41,2.518]
[1752003213953,1.68955045,660.56,660.41,2.518]
[1752003214755,1.68955045,660.57,660.41,2.518]
[1752003216659,1.68955045,660.56,660.41,2.518]
[1752003218358,1.68955045,660.57,660.41,2.518]
[1752003220360,1.68955045,660.52,660.41,2.518]
[1752003222162,1.68955045,660.53,660.41,2.518]
[1752003222662,1.68955045,660.5,660.41,2.518]
[1752003223356,1.68955045,660.51,660.41,2.518]
[1752003223761,1.68955045,660.5,660.41,2.518]
[1752003224963,1.68955045,660.46,660.41,2.518]
[1752003225258,1.68955045,660.47,660.41,2.518]
[1752003225459,1.68955045,660.43,660.41,2.518]
[1752003226061,1.68955045,660.44,660.41,2.518]
[1752003226363,1.68955045,660.45,660.41,2.518]
[1752003228364,1.68955045,660.46,660.41,2.518]
[1752003229664,1.68955045,660.45,660.41,2.518]
[1752003230166,1.68955045,660.44,660.41,2.518]
[1752003233869,1.68955045,660.44,660.14,0.26345474]
[1752003235868,1.68955045,660.43,660.14,0.26345474]
[1752003236867,1.68955045,660.43,660.15,2.404]
[1752003239673,1.69071106,660.43,660.15,2.404]
[1752003246180,1.69071106,660.42,660.15,2.404]
[1752003246479,1.69071106,660.43,660.15,2.404]
[1752003247380,1.69071106,660.42,660.15,2.404]
[1752003247577,1.69071106,660.48,660.15,2.404]
[1752003247781,1.69071106,660.46,660.15,2.404]
[1752003248882,1.69071106,660.47,660.15,2.404]
[1752003256997,2.25697379,660.63,660.15,2.404]
[1752003257199,1.69167671,660.47,660.15,2.404]
[1752003257400,1.69167671,660.42,660.15,2.404]
[1752003258097,1.69167671,660.43,660.15,2.404]
[1752003258593,1.69167671,660.44,660.15,2.404]
[1752003261198,1.69167671,660.43,660.15,2.404]
[1752003261696,1.69167671,660.44,660.15,2.404]
[1752003262799,2.25697379,660.58,660.15,2.404]
[1752003263000,1.6926391,660.44,660.15,2.404]
[1752003265197,1.6926391,660.43,660.15,2.404]
[1752003266001,1.6926391,660.43,660.04,0.2635076]
[1752003267997,1.6926391,660.42,660.04,0.2635076]
[1752003268399,1.6926391,660.41,660.04,0.2635076]
[1752003268596,2.25697379,660.55,660.04,0.2635076]
[1752003268799,1.69390268,660.41,660.04,0.2635076]
[1752003269098,1.69390268,660.41,660.05,2.418]
[1752003270399,1.69390268,660.4,660.05,2.418]
[1752003271505,1.69390268,660.39,660.05,2.418]
[1752003272304,1.69390268,660.38,660.05,2.418]
[1752003273101,1.69390268,660.39,660.05,2.418]
[1752003273308,1.69390268,660.38,660.05,2.418]
[1752003273603,1.69390268,660.37,660.05,2.418]
[1752003274403,1.69390268,660.36,660.05,2.418]
[1752003276308,5.65442408,661.02,660.05,2.418]
[1752003276309,1.69390268,660.35,660.05,2.418]
[1752003277204,1.69390268,660.34,660.05,2.418]
[1752003278209,1.69390268,660.33,660.05,2.418]
[1752003279008,2.25697379,660.44,660.05,2.418]
[1752003279212,1.69735174,660.32,660.05,2.418]
[1752003281210,1.69735174,660.31,660.05,2.418]
[1752003283213,1.69735174,660.3,660.05,2.418]
[1752003285214,1.69735174,660.29,660.05,2.418]
[1752003285914,1.69735174,660.29,660.04,0.2635076]
[1752003288213,1.69735174,660.29,660.05,1.914]
[1752003295025,1.69735174,660.39,660.05,1.914]
[1752003295225,1.69735174,660.35,660.05,1.914]
[1752003295425,1.69735174,660.37,660.05,1.914]
[1752003296526,1.69735174,660.59,660.05,1.914]
[1752003297520,1.69735174,660.63,660.05,1.914]
[1752003298521,1.69735174,660.65,660.05,1.914]
[1752003299425,1.69735174,660.66,660.05,1.914]
[1752003300126,1.69579188,660.66,660.05,1.914]
[1752003301522,1.69579188,660.67,660.05,1.914]
[1752003302424,1.69579188,660.68,660.05,1.914]
[1752003302628,1.69579188,660.67,660.05,1.914]
[1752003303527,1.69579188,660.68,660.05,1.914]
[1752003303723,1.69579188,660.69,660.05,1.914]
[1752003304124,1.69579188,660.68,660.05,1.914]
[1752003304326,1.69579188,660.69,660.05,1.914]
[1752003304930,1.69579188,660.73,660.05,1.914]
[1752003305530,1.69579188,660.74,660.05,1.914]
[1752003307929,1.69579188,660.75,660.05,1.914]
[1752003308932,1.69579188,660.76,660.05,1.914]
[1752003309831,1.69165213,660.76,660.05,1.914]
[1752003312432,1.69165213,660.77,660.05,1.914]
[1752003312736,1.69165213,660.75,660.05,1.914]
[1752003313648,1.69165213,660.74,660.05,1.914]
[1752003314338,1.69165213,660.76,660.05,1.914]
[1752003314935,1.69165213,660.72,660.05,1.914]
[1752003315239,1.69165213,660.72,660.04,0.2635076]
[1752003318241,1.69165213,660.72,660.05,2.292]
[1752003320245,1.69165213,660.73,660.05,2.292]
[1752003321945,1.69165213,660.72,660.05,2.292]
[1752003324145,1.69165213,660.71,660.05,2.292]
[1752003325751,1.68898269,660.71,660.05,2.292]
[1752003328949,1.68898269,660.74,660.05,2.292]
[1752003329448,1.68898269,660.75,660.05,2.292]
[1752003329652,1.68898269,660.74,660.05,2.292]
[1752003330053,1.68898269,660.73,660.05,2.292]
[1752003330453,1.68898269,660.74,660.05,2.292]
[1752003339058,1.68898269,660.71,660.05,2.292]
[1752003340260,1.68898269,660.7,660.05,2.292]
[1752003342362,1.68898269,660.71,660.05,2.292]
[1752003342668,1.68898269,660.74,660.05,2.292]
[1752003343664,1.68898269,660.76,660.05,2.292]
[1752003344164,1.68898269,660.7,660.05,2.292]
[1752003344567,1.68898269,660.71,660.05,2.292]
[1752003346469,1.68898269,660.74,660.05,2.292]
[1752003347469,1.68898269,660.73,660.05,2.292]
[1752003349066,1.68898269,660.72,660.05,2.292]
[1752003349972,1.68898269,660.7,660.05,2.292]
[1752003350573,1.68898269,660.69,660.05,2.292]
[1752003351472,1.68898269,660.68,660.05,2.292]
[1752003352375,1.68898269,660.67,660.05,2.292]
[1752003353273,2.25697379,660.82,660.05,2.292]
[1752003353469,1.69486866,660.62,660.05,2.292]
[1752003354573,1.69486866,660.59,660.05,2.292]
[1752003355169,1.69486866,660.6,660.05,2.292]
[1752003355473,1.69486866,660.58,660.05,2.292]
[1752003356375,1.69486866,660.56,660.05,2.292]
[1752003359875,1.69486866,660.56,660.05,4.55996834]
[1752003360975,1.69486866,660.56,660.05,2.292]
[1752003363073,1.69486866,660.59,660.05,2.292]
[1752003363275,1.69486866,660.59,660.04,0.2635076]
[1752003363475,1.69486866,660.58,660.04,0.2635076]
[1752003363973,1.69486866,660.57,660.04,0.2635076]
[1752003364573,1.69486866,660.58,660.04,0.2635076]
[1752003364873,2.25697379,660.71,660.04,0.2635076]
[1752003365077,1.69730158,660.51,660.04,0.2635076]
[1752003366681,1.69730158,660.52,660.04,0.2635076]
[1752003366977,1.69730158,660.51,660.05,2.105]
[1752003367178,1.69730158,660.49,660.05,2.105]
[1752003367477,3.39265445,660.75,660.05,2.105]
[1752003367478,1.69730158,660.5,660.05,2.105]
[1752003367683,1.69730158,660.47,660.05,2.105]
[1752003369478,1.69730158,660.48,660.05,2.105]
[1752003371480,1.69730158,660.49,660.05,2.105]
[1752003374185,1.69730158,660.5,660.05,2.105]
[1752003374484,1.69730158,660.48,660.05,2.105]
[1752003375388,1.69730158,660.49,660.05,2.105]
[1752003376987,1.69730158,660.48,660.05,2.105]
[1752003378889,1.69730158,660.49,660.05,2.105]
[1752003383191,1.69730158,660.5,660.05,2.105]
[1752003384191,1.69730158,660.49,660.05,2.105]
[1752003386193,1.69730158,660.5,660.05,2.105]
[1752003386393,1.69730158,660.49,660.05,2.105]
[1752003389595,1.69730158,660.48,660.05,2.105]
[1752003397495,1.69730158,660.48,660.08,0.2634707]
[1752003398500,1.69730158,660.47,660.08,0.2634707]
[1752003401401,1.69730158,660.48,660.08,0.2634707]
[1752003403604,1.69730158,660.47,660.08,0.2634707]
[1752003403802,1.69730158,660.48,660.08,0.2634707]
[1752003407605,1.69730158,660.49,660.08,0.2634707]
[1752003409406,1.69730158,660.48,660.08,0.2634707]
[1752003409707,1.69730158,660.49,660.08,0.2634707]
[1752003410508,1.69730158,660.48,660.08,0.2634707]
[1752003415416,1.69730158,660.47,660.08,0.2634707]
[1752003417620,1.69730158,660.46,660.08,0.2634707]
[1752003417821,1.69730158,660.5,660.08,0.2634707]
[1752003418018,1.69730158,660.52,660.08,0.2634707]
[1752003418419,1.69730158,660.51,660.08,0.2634707]
[1752003418921,1.69730158,660.56,660.08,0.2634707]
[1752003419120,1.69730158,660.61,660.08,0.2634707]
[1752003420324,1.69730158,660.6,660.08,0.2634707]
[1752003421225,1.69730158,660.6,660.09,1.649]
[1752003421422,1.69730158,660.61,660.09,1.649]
[1752003422424,1.69730158,660.6,660.09,1.649]
[1752003423520,1.69730158,660.62,660.09,1.649]
[1752003424425,1.69730158,660.63,660.09,1.649]
[1752003424627,1.69730158,660.62,660.09,1.649]
[1752003425329,1.69691235,660.62,660.09,1.649]
[1752003425722,1.69691235,660.63,660.09,1.649]
[1752003426925,1.69691235,660.62,660.09,1.649]
[1752003427128,1.69691235,660.64,660.09,1.649]
[1752003427428,1.69691235,660.65,660.09,1.649]
[1752003427828,1.69691235,660.63,660.09,1.649]
[1752003428225,1.69691235,660.62,660.09,1.649]
[1752003428529,1.69691235,660.63,660.09,1.649]
[1752003430325,1.69691235,660.64,660.09,1.649]
[1752003432025,1.69691235,660.67,660.09,1.649]
[1752003432224,1.69691235,660.66,660.09,1.649]
[1752003432429,1.69691235,660.67,660.09,1.649]
[1752003432625,1.69691235,660.66,660.09,1.649]
[1752003433427,2.26306877,660.8,660.09,1.649]
[1752003433428,1.69691235,660.67,660.09,1.649]
[1752003435429,1.69691235,660.68,660.09,1.649]
[1752003436931,1.69691235,660.65,660.09,1.649]
[1752003437435,1.69691235,660.66,660.09,1.649]
[1752003439035,1.69691235,660.68,660.09,1.649]
[1752003439335,1.69691235,660.69,660.09,1.649]
[1752003440636,1.69691235,660.7,660.09,1.649]
[1752003441038,1.69691235,660.75,660.09,1.649]
[1752003442336,1.69691235,660.76,660.09,1.649]
[1752003442538,1.69691235,660.75,660.09,1.649]
[1752003443436,1.69691235,660.76,660.09,1.649]
[1752003443739,1.69691235,660.83,660.09,1.649]
[1752003447338,1.69691235,660.84,660.09,1.649]
[1752003448439,1.69691235,660.85,660.09,1.649]
[1752003449238,1.69691235,660.83,660.09,1.649]
[1752003454248,1.69691235,660.84,660.09,1.649]
[1752003457855,1.69691235,660.83,660.09,1.649]
[1752003458753,1.69691235,660.84,660.09,1.649]
[1752003466761,1.69691235,660.93,660.09,1.649]
[1752003468962,1.69691235,660.96,660.09,1.649]
[1752003469159,1.69691235,660.97,660.09,1.649]
[1752003470466,1.69691235,660.96,660.09,1.649]
[1752003476765,1.69691235,660.92,660.09,1.649]
[1752003477469,1.69691235,660.91,660.09,1.649]
[1752003478469,1.69691235,660.92,660.09,1.649]
[1752003478768,1.69691235,660.93,660.09,1.649]
[1752003478965,1.69691235,660.87,660.09,1.649]
[1752003479470,1.69691235,660.86,660.09,1.649]
[1752003480371,1.69691235,660.87,660.09,1.649]
[1752003481270,1.69691235,660.87,660.08,0.2634707]
[1752003481471,1.69691235,660.86,660.08,2.53143822]
[1752003483071,1.69691235,660.84,660.13,2.26796752]
[1752003483471,1.69691235,660.83,660.13,2.26796752]
[1752003483868,1.69691235,660.83,660.14,2.26796752]
[1752003484672,1.69691235,660.81,660.17,2.26796752]
[1752003485674,1.69691235,660.81,660.18,2.26796752]
[1752003486872,1.69691235,660.8,660.19,2.26796752]
[1752003488371,1.69691235,660.81,660.18,2.26796752]
[1752003489478,1.69691235,660.8,660.18,2.26796752]
[1752003489676,1.69691235,660.81,660.17,2.26796752]
[1752003490278,1.69691235,660.8,660.18,2.26796752]
[1752003491481,1.69691235,660.8,660.19,2.26796752]
[1752003492383,1.69691235,660.79,660.19,2.26796752]
[1752003492882,1.69691235,660.8,660.19,2.26796752]
[1752003493382,1.69691235,660.79,660.2,2.26796752]
[1752003493978,1.69691235,660.79,660.21,2.26796752]
[1752003494482,1.69691235,660.78,660.22,2.26796752]
[1752003495282,1.69691235,660.79,660.23,2.26796752]
[1752003495783,1.69691235,660.9,660.22,2.26796752]
[1752003495985,1.69691235,660.91,660.22,2.26796752]
[1752003496782,1.69691235,660.91,660.23,2.26796752]
[1752003499183,1.69691235,660.91,660.22,2.26796752]
[1752003499381,1.69691235,660.91,660.23,2.26796752]
[1752003500384,1.69691235,660.9,660.23,2.26796752]
[1752003501080,1.69691235,660.91,660.23,2.26796752]
[1752003505386,1.69691235,660.88,660.31,2.26796752]
[1752003507789,0.26326839,661.4,660.29,2.26796752]
[1752003507790,1.69691235,660.89,660.29,2.26796752]
[1752003508592,1.69691235,660.89,660.28,2.26796752]
[1752003509088,1.69691235,660.89,660.29,2.26796752]
[1752003510594,1.69691235,660.88,660.29,2.26796752]
[1752003511289,1.69691235,660.89,660.3,2.299]
[1752003517493,1.69691235,660.9,660.3,2.299]
[1752003519091,1.69691235,660.94,660.3,2.299]
[1752003519594,1.69691235,660.9,660.3,2.299]
[1752003519795,1.69691235,660.87,660.3,2.299]
[1752003521193,1.69691235,660.88,660.3,2.299]
[1752003522293,1.69691235,660.87,660.3,2.299]
[1752003523799,1.69691235,660.88,660.3,2.299]
[1752003524899,1.69691235,660.87,660.3,2.299]
[1752003525600,1.69691235,660.88,660.3,2.299]
[1752003528702,1.69691235,660.87,660.3,2.299]
[1752003529101,1.69691235,660.84,660.3,2.299]
[1752003531102,1.69691235,660.83,660.3,2.299]
[1752003532505,1.69691235,660.83,660.16,2.26796752]
[1752003533704,1.69691235,660.82,660.18,2.26796752]
[1752003534106,1.69691235,660.82,660.19,2.26796752]
[1752003535006,1.69691235,660.82,660.18,2.26796752]
[1752003535205,1.69691235,660.82,660.19,2.26796752]
[1752003535607,1.69691235,660.8,660.23,2.26796752]
[1752003536411,1.69691235,660.8,660.24,1.981]
[1752003536812,1.69691235,660.81,660.24,1.981]
[1752003537312,1.69691235,660.8,660.24,1.981]
[1752003537813,1.69691235,660.82,660.24,1.981]
[1752003539115,1.69691235,660.83,660.24,1.981]
[1752003541813,3.39265445,661.09,660.24,1.981]
[1752003542117,1.01344032,661.39,660.24,1.981]
[1752003542416,1.01344032,661.38,660.24,1.981]
[1752003542617,1.01344032,661.37,660.24,1.981]
[1752003542817,1.01344032,661.36,660.24,1.981]
[1752003543017,1.01344032,661.35,660.24,1.981]
[1752003543214,1.01344032,661.34,660.24,1.981]
[1752003543412,1.01344032,661.33,660.24,1.981]
[1752003543616,1.01344032,661.32,660.24,1.981]
[1752003543817,0.26326839,661.4,660.24,1.981]
[1752003543818,1.69519227,660.76,660.24,1.981]
[1752003544015,1.69519227,660.77,660.24,1.981]
[1752003547622,1.69519227,660.75,660.24,1.981]
[1752003547821,1.69519227,660.74,660.24,1.981]
[1752003548322,1.69519227,660.78,660.24,1.981]
[1752003548717,1.69519227,660.79,660.24,1.981]
[1752003549020,1.69519227,660.78,660.24,1.981]
[1752003552125,1.69519227,660.79,660.24,1.981]
[1752003552525,1.69519227,660.78,660.24,1.981]
[1752003552725,1.69519227,660.79,660.24,1.981]
[1752003556825,1.69519227,660.78,660.24,1.981]
[1752003557225,1.69519227,660.79,660.24,1.981]
[1752003557426,1.69519227,660.78,660.24,1.981]
[1752003558131,1.69519227,660.75,660.24,1.981]
[1752003559132,1.69519227,660.78,660.24,1.981]
[1752003559631,1.69519227,660.77,660.18,2.26542637]
[1752003560731,1.69519227,660.77,660.08,0.2634707]
[1752003560732,1.69519227,660.78,660.17,2.26542637]
[1752003561529,0.26326839,661.4,660.18,2.26542637]
[1752003561530,1.69519227,660.77,660.18,2.26542637]
[1752003561933,1.69519227,660.77,660.19,1.817]
[1752003562836,2.26025636,660.88,660.19,1.817]
[1752003563036,1.69390197,660.77,660.19,1.817]
[1752003564037,1.69390197,660.78,660.19,1.817]
[1752003564541,1.69390197,660.77,660.19,1.817]
[1752003567144,1.69390197,660.76,660.19,1.817]
[1752003568443,1.69390197,660.77,660.19,1.817]
[1752003568841,1.69411694,660.77,660.19,1.817]